lending/lending_fUSD_20240219
["ID","MTS","AMOUNT","RATE_DAILY","PERIOD"]
[314489845,1708375992738,-1684.76,0.00049315,30]
[314489846,1708375992747,-500.0,0.00049315,30]
[314489847,1708375992757,-1412.31,0.00049315,30]
[314489848,1708375992765,-500.0,0.00049315,30]
[314489849,1708375992775,-2000.0,0.00049315,30]
[314489850,1708375992784,-241.95680319,0.00049315,30]
[314489851,1708375992793,-500.0,0.00049315,30]
[314489852,1708375992803,-1438.64,0.00049315,30]
[314489853,1708375992813,-525.84,0.00049315,30]
[314489854,1708375992822,-500.0,0.00049315,30]
[314489855,1708375992831,-500.0,0.00049315,30]
[314489856,1708375992841,-500.0,0.00049315,30]
[314489857,1708375992850,-519.41,0.00049315,30]
[314489858,1708375992859,-500.0,0.00049315,30]
[314489859,1708375992868,-500.0,0.00049315,30]
[314489860,1708375992878,-500.0,0.00049315,30]
[314489861,1708375992887,-1430.29,0.00049315,30]
[314489862,1708375992896,-500.0,0.00049315,30]
[314489863,1708375992905,-500.0,0.00049315,30]
[314489864,1708375992915,-500.0,0.00049315,30]
[314489865,1708375992924,-500.0,0.00049315,30]
[314489866,1708375992933,-1019.92,0.00049315,30]
[314489867,1708375992943,-1105.45,0.00049315,30]
[314489868,1708375992953,-500.0,0.00049315,30]
[314489869,1708375992962,-500.0,0.00049315,30]
[314489870,1708375992971,-592.36,0.00049315,30]
[314489871,1708375992980,-500.0,0.00049315,30]
[314489872,1708375992989,-500.0,0.00049315,30]
[314489873,1708375992999,-1079.31,0.00049315,30]
[314489874,1708375993008,-500.0,0.00049315,30]
[314489875,1708375993019,-500.0,0.00049315,30]
[314489876,1708375993029,-1238.71,0.00049315,30]
[314489877,1708375993038,-500.0,0.00049315,30]
[314489878,1708375993049,-1695.98,0.00049315,2]
[314489879,1708375993058,-512.64,0.00049315,30]
[314489880,1708375993068,-500.0,0.00049315,30]
[314489881,1708375993077,-500.0,0.00049315,30]
[314489882,1708375993088,-626.83,0.00049315,30]
[314489883,1708375993099,-500.0,0.00049315,30]
[314489884,1708375993113,-500.0,0.00049315,30]
[314489885,1708375993123,-1225.04,0.00049315,30]
[314489886,1708375993133,-782.42,0.00049315,30]
[314489887,1708375993143,-500.0,0.00049315,2]
[314489888,1708375993154,-1117.49,0.00049315,30]
[314489889,1708375993164,-454.58560463,0.00049315,30]
[314489890,1708375993174,-540.29,0.00049315,30]
[314489891,1708375993184,-286.0,0.00049315,30]
[314489892,1708375993195,-2972.08293337,0.00049315,120]
[314489893,1708375993205,-681.37,0.00049315,30]
[314489894,1708375993215,-500.0,0.00049315,30]
[314489895,1708375993226,-1341.5,0.00049315,30]
[314489896,1708375993351,-834.82,0.00049315,30]
[314489897,1708375993362,-500.0,0.00049315,30]
[314489898,1708375993374,-500.0,0.00049315,30]
[314489899,1708375993384,-526.87,0.00049315,30]
[314489900,1708375993394,-567.2,0.00049315,30]
[314489901,1708375993404,-500.0,0.00049315,30]
[314489902,1708375993414,-500.0,0.00049315,30]
[314489903,1708375993426,-500.0,0.00049315,30]
[314489904,1708375993436,-500.0,0.00049315,30]
[314489905,1708375993446,-500.0,0.00049315,30]
[314489906,1708375993458,-1134.32,0.00049315,30]
[314489907,1708375993469,-520.43554463,0.00049315,30]
[314489908,1708375993479,-826.41,0.00049315,30]
[314489909,1708375993490,-1378.15,0.00049315,30]
[314489910,1708375993500,-1170.65,0.00049315,30]
[314489911,1708375993511,-1602.18,0.00049315,30]
[314489912,1708375993521,-500.0,0.00049315,30]
[314489913,1708375993530,-910.93,0.00049315,30]
[314489914,1708375993540,-730.4,0.00049315,30]
[314489915,1708375993550,-1022.68,0.00049315,30]
[314489916,1708375993561,-619.27,0.00049315,30]
[314489917,1708375993572,-1234.7,0.00049315,30]
[314489918,1708375993583,-500.0,0.00049315,30]
[314489919,1708375993593,-1015.68,0.00049315,30]
[314489920,1708375993604,-500.0,0.00049315,30]
[314489921,1708375993616,-500.0,0.00049315,30]
[314489922,1708375993627,-500.0,0.00049315,30]
[314489923,1708375993637,-500.0,0.00049315,30]
[314489924,1708375993647,-640.09,0.00049315,30]
[314489925,1708375993658,-1097.36,0.00049315,30]
[314489926,1708375993668,-500.0,0.00049315,30]
[314489927,1708375993678,-500.0,0.00049315,30]
[314489928,1708375993688,-586.6,0.00049315,30]
[314489929,1708375993698,-500.0,0.00049315,30]
[314489930,1708375993708,-500.0,0.00049315,30]
[314489931,1708375993719,-989.09,0.00049315,30]
[314489932,1708375993729,-500.0,0.00049315,30]
[314489933,1708375993739,-600.0,0.00049315,120]
[314489934,1708375993749,-600.0,0.00049315,120]
[314489935,1708375993759,-1358.39,0.00049315,30]
[314489936,1708375993769,-600.0,0.00049315,120]
[314489937,1708375993779,-639.00671154,0.00049315,120]
[314489938,1708375993788,-500.0,0.00049315,30]
[314489939,1708375993799,-546.18,0.00049315,30]
[314489940,1708375993810,-500.0,0.00049315,30]
[314489941,1708375993820,-1072.42,0.00049315,30]
[314489942,1708375993830,-500.0,0.00049315,30]
[314489943,1708375993841,-1139.87,0.00049315,30]
[314489944,1708375993851,-500.0,0.00049315,30]
[314489945,1708375993861,-653.92,0.00049315,30]
[314489946,1708375993873,-500.0,0.00049315,30]
[314489947,1708375993883,-1319.89,0.00049315,30]
[314489948,1708375993892,-1138.49,0.00049315,30]
[314489949,1708375993902,-500.0,0.00049315,30]
[314489950,1708375993912,-500.0,0.00049315,30]
[314489951,1708375993921,-500.0,0.00049315,30]
[314489952,1708375993932,-500.0,0.00049315,80]
[314489953,1708375993942,-821.67,0.00049315,30]
[314489954,1708375993952,-701.86,0.00049315,30]
[314489955,1708375993961,-500.0,0.00049315,30]
[314489956,1708375993971,-546.51,0.00049315,30]
[314489957,1708375993981,-500.0,0.00049315,30]
[314489958,1708375993990,-500.0,0.00049315,30]
[314489959,1708375994000,-555.68,0.00049315,30]
[314489960,1708375994010,-791.29,0.00049315,30]
[314489961,1708375994020,-500.0,0.00049315,30]
[314489962,1708375994030,-517.1,0.00049315,30]
[314489963,1708375994040,-500.0,0.00049315,30]
[314489964,1708375994050,-817.72,0.00049315,30]
[314489965,1708375994060,-1096.08,0.00049315,30]
[314489966,1708375994070,-500.0,0.00049315,30]
[314489967,1708375994080,-1231.27,0.00049315,30]
[314489968,1708375994093,-882.89,0.00049315,30]
[314489969,1708375994103,-193.60111961,0.00049315,30]
[314489970,1708375994118,-633.3,0.00049315,30]
[314489971,1708375994129,-500.0,0.00049315,30]
[314489972,1708375994138,-500.0,0.00049315,30]
[314489973,1708375994148,-1075.43,0.00049315,30]
[314489974,1708375994158,-1081.85,0.00049315,30]
[314489975,1708375994168,-500.0,0.00049315,30]
[314489976,1708375994178,-569.42,0.00049315,30]
[314489977,1708375994191,-1092.13,0.00049315,30]
[314489978,1708375994202,-212.11824565,0.00049315,30]
[314489979,1708375994216,-500.0,0.00049315,30]
[314489980,1708375994225,-537.66,0.00049315,30]
[314489981,1708375994235,-500.0,0.00049315,30]
[314489982,1708375994245,-500.0,0.00049315,30]
[314489983,1708375994255,-686.43,0.00049315,30]
[314489984,1708375994265,-988.65,0.00049315,30]
[314489985,1708375994275,-500.0,0.00049315,30]
[314489986,1708375994285,-1169.05,0.00049315,30]
[314489987,1708375994294,-696.77,0.00049315,30]
[314489988,1708375994304,-1548.35,0.00049315,30]
[314489989,1708375994314,-500.0,0.00049315,30]
[314489990,1708375994324,-823.36,0.00049315,30]
[314489991,1708375994333,-879.35,0.00049315,30]
[314489992,1708375994342,-500.0,0.00049315,30]
[314489993,1708375994352,-971.92,0.00049315,30]
[314489994,1708375994362,-1247.38,0.00049315,30]
[314489995,1708375994373,-1398.42,0.00049315,30]
[314489996,1708375994382,-701.34,0.00049315,30]
[314489997,1708375994392,-500.0,0.00049315,30]
[314489998,1708375994401,-926.08,0.00049315,30]
[314489999,1708375994412,-1439.25,0.00049315,30]
[314490000,1708375994422,-730.11,0.00049315,30]
[314490001,1708375994432,-642.65,0.00049315,30]
[314490002,1708375994443,-1058.32,0.00049315,30]
[314490003,1708375994453,-909.21,0.00049315,30]
[314490004,1708375994463,-960.6,0.00049315,30]
[314490005,1708375994474,-500.0,0.00049315,30]
[314490006,1708375994485,-529.3,0.00049315,30]
[314490007,1708375994495,-500.0,0.00049315,30]
[314490008,1708375994505,-553.07194171,0.00049315,30]
[314490009,1708375994516,-500.0,0.00049315,30]
[314490010,1708375994526,-747.42,0.00049315,30]
[314490011,1708375994537,-830.98,0.00049315,30]
[314490012,1708375994548,-1206.67,0.00049315,30]
[314490013,1708375994559,-500.0,0.00049315,30]
[314490014,1708375994569,-1598.54,0.00049315,30]
[314490015,1708375994579,-642.68,0.00049315,30]
[314490016,1708375994590,-500.0,0.00049315,30]
[314490017,1708375994600,-542.13,0.00049315,30]
[314490018,1708375994609,-921.92,0.00049315,30]
[314490019,1708375994622,-751.64,0.00049315,30]
[314490020,1708375994632,-905.09,0.00049315,30]
[314490021,1708375994642,-752.52,0.00049315,30]
[314490022,1708375994652,-500.0,0.00049315,30]
[314490023,1708375994661,-811.75,0.00049315,30]
[314490024,1708375994671,-565.99,0.00049315,30]
[314490025,1708375994681,-1432.15,0.00049315,30]
[314490026,1708375994692,-694.07,0.00049315,30]
[314490027,1708375994701,-500.0,0.00049315,30]
[314490028,1708375994711,-1105.31,0.00049315,30]
[314490029,1708375994721,-724.85,0.00049315,30]
[314490030,1708375994731,-500.0,0.00049315,30]
[314490031,1708375994741,-1212.7,0.00049315,30]
[314490032,1708375994752,-892.85,0.00049315,30]
[314490033,1708375994761,-500.0,0.00049315,30]
[314490034,1708375994771,-869.25,0.00049315,30]
[314490035,1708375994781,-500.0,0.00049315,30]
[314490036,1708375994791,-500.0,0.00049315,30]
[314490037,1708375994801,-500.0,0.00049315,30]
[314490038,1708375994811,-567.89,0.00049315,30]
[314490039,1708375994821,-1168.13,0.00049315,30]
[314490040,1708375994831,-810.5,0.00049315,30]
[314490041,1708375994842,-1054.03,0.00049315,30]
[314490042,1708375994852,-500.0,0.00049315,30]
[314490043,1708375994862,-500.0,0.00049315,30]
[314490044,1708375994876,-822.31,0.00049315,30]
[314490045,1708375994886,-500.0,0.00049315,30]
[314490046,1708375994896,-1261.76,0.00049315,30]
[314490047,1708375994906,-500.0,0.00049315,30]
[314490048,1708375994916,-743.59,0.00049315,30]
[314490049,1708375994926,-929.31,0.00049315,30]
[314490050,1708375994935,-500.0,0.00049315,30]
[314490051,1708375994945,-516.11,0.00049315,30]
[314490052,1708375994955,-1169.76,0.00049315,30]
[314490053,1708375994964,-500.0,0.00049315,30]
[314490054,1708375994974,-655.79,0.00049315,30]
[314490055,1708375994984,-561.01490195,0.00049315,30]
[314490056,1708375994993,-1155.7,0.00049315,30]
[314490057,1708375995003,-500.0,0.00049315,30]
[314490058,1708375995012,-1079.22,0.00049315,30]
[314490059,1708375995022,-531.84,0.00049315,30]
[314490060,1708375995031,-1189.04,0.00049315,30]
[314490061,1708375995041,-817.13,0.00049315,30]
[314490062,1708375995051,-500.0,0.00049315,30]
[314490063,1708375995060,-500.0,0.00049315,30]
[314490064,1708375995071,-954.22,0.00049315,30]
[314490065,1708375995081,-500.0,0.00049315,30]
[314490066,1708375995092,-1014.4,0.00049315,30]
[314490067,1708375995106,-1091.86,0.00049315,30]
[314490068,1708375995121,-623.17,0.00049315,30]
[314490069,1708375995130,-976.49,0.00049315,30]
[314490070,1708375995141,-500.0,0.00049315,30]
[314490071,1708375995151,-500.0,0.00049315,30]
[314490072,1708375995160,-500.0,0.00049315,30]
[314490073,1708375995170,-980.87,0.00049315,30]
[314490074,1708375995180,-500.0,0.00049315,30]
[314490075,1708375995190,-500.0,0.00049315,30]
[314490076,1708375995201,-500.0,0.00049315,30]
[314490077,1708375995210,-500.0,0.00049315,30]
[314490078,1708375995220,-500.0,0.00049315,30]
[314490079,1708375995230,-500.0,0.00049315,30]
[314490080,1708375995239,-500.0,0.00049315,30]
[314490081,1708375995249,-1000.0,0.00049315,7]
[314490082,1708375995261,-893.6,0.00049315,30]
[314490083,1708375995272,-500.0,0.00049315,30]
[314490084,1708375995282,-500.0,0.00049315,30]
[314490085,1708375995293,-500.0,0.00049315,30]
[314490086,1708375995303,-641.69,0.00049315,30]
[314490087,1708375995314,-500.0,0.00049315,30]
[314490088,1708375995323,-500.0,0.00049315,30]
[314490089,1708375995333,-500.0,0.00049315,30]
[314490090,1708375995344,-500.0,0.00049315,30]
[314490091,1708375995353,-1098.68,0.00049315,30]
[314490092,1708375995362,-603.71616128,0.00049315,30]
[314490093,1708375995375,-500.0,0.00049315,30]
[314490094,1708375995385,-500.0,0.00049315,30]
[314490095,1708375995394,-783.48,0.00049315,30]
[314490096,1708375995403,-500.0,0.00049315,30]
[314490097,1708375995413,-500.0,0.00049315,30]
[314490098,1708375995424,-1291.14,0.00049315,30]
[314490099,1708375995435,-1226.84,0.00049315,30]
[314490100,1708375995445,-500.0,0.00049315,30]
[314490101,1708375995456,-764.49,0.00049315,30]
[314490102,1708375995466,-500.0,0.00049315,30]
[314490103,1708375995476,-500.0,0.00049315,30]
[314490104,1708375995486,-625.5,0.00049315,30]
[314490105,1708375995495,-500.0,0.00049315,30]
[314490106,1708375995505,-871.41,0.00049315,30]
[314490107,1708375995516,-500.0,0.00049315,30]
[314490108,1708375995526,-937.75,0.00049315,30]
[314490109,1708375995536,-500.0,0.00049315,30]
[314490110,1708375995545,-500.0,0.00049315,30]
[314490111,1708375995555,-2580.06,0.00049315,30]
[314490112,1708375995565,-500.0,0.00049315,30]
[314490113,1708375995574,-874.69,0.00049315,30]
[314490114,1708375995585,-500.0,0.00049315,30]
[314490115,1708375995893,-500.0,0.00049315,30]
[314490116,1708375995909,-742.82,0.00049315,30]
[314490117,1708375995918,-580.6,0.00049315,30]
[314490118,1708375995927,-1385.86,0.00049315,30]
[314490119,1708375995937,-626.34,0.00049315,30]
[314490120,1708375995946,-1122.0,0.00049315,30]
[314490121,1708375995956,-673.8,0.00049315,30]
[314490122,1708375995966,-948.86,0.00049315,30]
[314490123,1708375995976,-500.0,0.00049315,30]
[314490124,1708375995985,-500.0,0.00049315,30]
[314490125,1708375995995,-500.0,0.00049315,30]
[314490126,1708375996004,-500.0,0.00049315,30]
[314490127,1708375996014,-500.0,0.00049315,30]
[314490128,1708375996024,-681.52,0.00049315,30]
[314490129,1708375996034,-1101.95,0.00049315,30]
[314490130,1708375996043,-500.0,0.00049315,30]
[314490131,1708375996053,-500.0,0.00049315,30]
[314490132,1708375996063,-981.09,0.00049315,30]
[314490133,1708375996073,-1174.33,0.00049315,30]
[314490134,1708375996082,-4511.29,0.00049315,30]
[314490135,1708375996092,-2077.3,0.00049315,30]
[314490136,1708375996102,-262.81555837,0.00049315,30]
[314490137,1708375996115,-1043.21,0.00049315,30]
[314490138,1708375996125,-500.0,0.00049315,30]
[314490139,1708375996135,-888.3,0.00049315,30]
[314490140,1708375996144,-610.38,0.00049315,30]
[314490141,1708375996154,-500.0,0.00049315,30]
[314490142,1708375996164,-3093.94,0.00049315,30]
[314490143,1708375996173,-1342.73,0.00049315,30]
[314490144,1708375996183,-500.0,0.00049315,30]
[314490145,1708375996195,-500.0,0.00049315,30]
[314490146,1708375996205,-4450.76,0.00049315,30]
[314490147,1708375996214,-2986.67,0.00049315,30]
[314490148,1708375996224,-927.23,0.00049315,30]
[314490149,1708375996233,-500.0,0.00049315,30]
[314490150,1708375996243,-500.0,0.00049315,30]
[314490151,1708375996253,-4576.97,0.00049315,30]
[314490152,1708375996263,-500.0,0.00049315,30]
[314490153,1708375996273,-1346.18,0.00049315,30]
[314490154,1708375996283,-2880.36,0.00049315,30]
[314490155,1708375996292,-500.0,0.00049315,30]
[314490156,1708375996301,-540.25,0.00049315,30]
[314490157,1708375996311,-942.11,0.00049315,30]
[314490158,1708375996321,-802.39,0.00049315,30]
[314490159,1708375996330,-500.0,0.00049315,30]
[314490160,1708375996341,-3501.98,0.00049315,30]
[314490161,1708375996351,-3067.49,0.00049315,30]
[314490162,1708375996361,-500.0,0.00049315,30]
[314490163,1708375996373,-500.0,0.00049315,30]
[314490164,1708375996383,-752.55,0.00049315,30]
[314490165,1708375996392,-500.0,0.00049315,30]
[314490166,1708375996402,-500.0,0.00049315,30]
[314490167,1708375996411,-983.46,0.00049315,30]
[314490168,1708375996421,-297.36,0.00049315,30]
[314490169,1708375996432,-3285.56,0.00049315,30]
[314490170,1708375996442,-2258.21,0.00049315,30]
[314490171,1708375996453,-708.73,0.00049315,30]
[314490172,1708375996463,-1637.57,0.00049315,30]
[314490173,1708375996473,-764.0,0.00049315,30]
[314490174,1708375996483,-2380.23,0.00049315,30]
[314490175,1708375996494,-947.27,0.00049315,30]
[314490176,1708375996504,-500.0,0.00049315,30]
[314490177,1708375996514,-500.0,0.00049315,30]
[314490178,1708375996524,-5708.36,0.00049315,30]
[314490179,1708375996534,-23500.73,0.00049315,30]
[314490180,1708375996544,-500.0,0.00049315,30]
[314490181,1708375996554,-500.0,0.00049315,30]
[314490182,1708375996564,-521.33,0.00049315,30]
[314490183,1708375996574,-1961.93,0.00049315,30]
[314490184,1708375996583,-500.0,0.00049315,30]
[314490185,1708375996594,-3029.82,0.00049315,30]
[314490186,1708375996604,-532.9,0.00049315,30]
[314490187,1708375996614,-2118.66,0.00049315,30]
[314490188,1708375996624,-599.57,0.00049315,30]
[314490189,1708375996634,-500.0,0.00049315,30]
[314490190,1708375996643,-500.0,0.00049315,30]
[314490191,1708375996654,-500.0,0.00049315,30]
[314490192,1708375996663,-2534.45,0.00049315,30]
[314490193,1708375996673,-2219.53,0.00049315,30]
[314490194,1708375996683,-4072.8,0.00049315,30]
[314490195,1708375996693,-500.0,0.00049315,30]
[314490196,1708375996702,-1226.32,0.00049315,30]
[314490197,1708375996713,-2415.59,0.00049315,30]
[314490198,1708375996722,-3574.68,0.00049315,30]
[314490199,1708375996732,-500.0,0.00049315,30]
[314490200,1708375996742,-500.0,0.00049315,30]
[314490201,1708375996752,-500.0,0.00049315,30]
[314490202,1708375996761,-895.28,0.00049315,30]
[314490203,1708375996771,-1108.54,0.00049315,30]
[314490204,1708375996781,-500.0,0.00049315,30]
[314490205,1708375996790,-6525.8,0.00049315,30]
[314490206,1708375996800,-500.0,0.00049315,30]
[314490207,1708375996809,-500.0,0.00049315,30]
[314490208,1708375996819,-2463.17,0.00049315,30]
[314490209,1708375996829,-500.0,0.00049315,30]
[314490210,1708375996839,-1236.32,0.00049315,30]
[314490211,1708375996848,-2672.0,0.00049315,30]
[314490212,1708375996859,-500.0,0.00049315,30]
[314490213,1708375996869,-500.0,0.00049315,30]
[314490214,1708375996879,-365.59,0.00049315,30]
[314490215,1708375996889,-768.47,0.00049315,30]
[314490216,1708375996899,-500.0,0.00049315,30]
[314490217,1708375996908,-1506.06,0.00049315,30]
[314490218,1708375996917,-4807.82,0.00049315,30]
[314490219,1708375996927,-1592.25,0.00049315,30]
[314490220,1708375996937,-2737.65,0.00049315,30]
[314490221,1708375996946,-947.04,0.00049315,30]
[314490222,1708375996956,-500.0,0.00049315,30]
[314490223,1708375996966,-1685.16,0.00049315,30]
[314490224,1708375996976,-3582.15,0.00049315,30]
[314490225,1708375996986,-840.54,0.00049315,30]
[314490226,1708375996995,-689.96,0.00049315,30]
[314490227,1708375997005,-2210.61,0.00049315,30]
[314490228,1708375997015,-1478.0,0.00049315,30]
[314490229,1708375997025,-2915.8,0.00049315,30]
[314490230,1708375997034,-2089.99,0.00049315,30]
[314490231,1708375997044,-500.0,0.00049315,30]
[314490232,1708375997053,-2806.73,0.00049315,30]
[314490233,1708375997063,-500.0,0.00049315,30]
[314490234,1708375997073,-500.0,0.00049315,30]
[314490235,1708375997083,-500.0,0.00049315,30]
[314490236,1708375997094,-535.41,0.00049315,30]
[314490237,1708375997107,-4007.0,0.00049315,30]
[314490238,1708375997118,-5460.88,0.00049315,30]
[314490239,1708375997129,-500.0,0.00049315,30]
[314490240,1708375997139,-995.73,0.00049315,30]
[314490241,1708375997148,-770.97,0.00049315,30]
[314490242,1708375997159,-500.0,0.00049315,30]
[314490243,1708375997169,-2873.04,0.00049315,30]
[314490244,1708375997178,-720.61,0.00049315,30]
[314490245,1708375997188,-500.0,0.00049315,30]
[314490246,1708375997198,-3954.52,0.00049315,30]
[314490247,1708375997207,-500.0,0.00049315,30]
[314490248,1708375997216,-500.0,0.00049315,30]
[314490249,1708375997226,-3457.64,0.00049315,30]
[314490250,1708375997235,-2900.34,0.00049315,30]
[314490251,1708375997244,-1032.0,0.00049315,30]
[314490252,1708375997253,-1711.5,0.00049315,30]
[314490253,1708375997263,-500.0,0.00049315,30]
[314490254,1708375997272,-500.0,0.00049315,30]
[314490255,1708375997281,-1637.24,0.00049315,30]
[314490256,1708375997292,-1605.65,0.00049315,30]
[314490257,1708375997301,-1340.91,0.00049315,30]
[314490258,1708375997310,-1138.43,0.00049315,30]
[314490259,1708375997319,-4980.44,0.00049315,30]
[314490260,1708375997329,-4358.32,0.00049315,30]
[314490261,1708375997338,-3294.28,0.00049315,30]
[314490262,1708375997347,-500.0,0.00049315,30]
[314490263,1708375997356,-1721.24,0.00049315,30]
[314490264,1708375997367,-2226.31,0.00049315,30]
[314490265,1708375997377,-500.0,0.00049315,30]
[314490266,1708375997387,-11469.95,0.00049315,30]
[314490267,1708375997396,-500.0,0.00049315,30]
[314490268,1708375997406,-1155.9,0.00049315,30]
[314490269,1708375997416,-4304.4,0.00049315,30]
[314490270,1708375997425,-500.0,0.00049315,30]
[314490271,1708375997437,-3503.11,0.00049315,30]
[314490272,1708375997446,-2631.73,0.00049315,30]
[314490273,1708375997456,-264.99070848,0.00049315,30]
[314490274,1708375997466,-7606.19,0.00049315,30]
[314490275,1708375997476,-914.27,0.00049315,30]
[314490276,1708375997486,-1106.22,0.00049315,30]
[314490277,1708375997495,-2816.09,0.00049315,30]
[314490278,1708375997505,-500.0,0.00049315,30]
[314490279,1708375997515,-1288.03,0.00049315,30]
[314490280,1708375997525,-800.19,0.00049315,30]
[314490281,1708375997535,-500.0,0.00049315,30]
[314490282,1708375997544,-500.0,0.00049315,30]
[314490283,1708375997554,-5000.0,0.00049315,60]
[314490284,1708375997564,-4924.17,0.00049315,30]
[314490285,1708375997573,-2194.88,0.00049315,30]
[314490286,1708375997582,-6760.53,0.00049315,30]
[314490287,1708375997591,-1418.43,0.00049315,30]
[314490288,1708375997601,-707.46,0.00049315,30]
[314490289,1708375997611,-500.0,0.00049315,30]
[314490290,1708375997621,-1586.82,0.00049315,30]
[314490291,1708375997632,-500.0,0.00049315,30]
[314490292,1708375997642,-6176.75,0.00049315,30]
[314490293,1708375997652,-974.61,0.00049315,30]
[314490294,1708375997662,-500.0,0.00049315,30]
[314490295,1708375997671,-502.06,0.00049315,30]
[314490296,1708375997682,-620.96,0.00049315,30]
[314490297,1708375997691,-500.0,0.00049315,30]
[314490298,1708375997699,-18642.5,0.00049315,30]
[314490299,1708375997708,-500.0,0.00049315,30]
[314490300,1708375997718,-957.13,0.00049315,30]
[314490301,1708375997726,-664.1,0.00049315,30]
[314490302,1708375997736,-1370.86,0.00049315,30]
[314490303,1708375997745,-1421.33,0.00049315,30]
[314490304,1708375997755,-2270.35,0.00049315,30]
[314490305,1708375997764,-1319.59,0.00049315,30]
[314490306,1708375997773,-3424.97,0.00049315,30]
[314490307,1708375997783,-1370.06,0.00049315,30]
[314490308,1708375997793,-43487.96,0.00049315,30]
[314490309,1708375997802,-2622.18,0.00049315,30]
[314490310,1708375997811,-500.0,0.00049315,30]
[314490311,1708375997821,-500.0,0.00049315,30]
[314490312,1708375997831,-1138.11,0.00049315,30]
[314490313,1708375997841,-731.53,0.00049315,30]
[314490314,1708375997850,-500.0,0.00049315,30]
[314490315,1708375997860,-3031.14,0.00049315,30]
[314490316,1708375997870,-4401.37,0.00049315,30]
[314490317,1708375997880,-924.5,0.00049315,30]
[314490318,1708375997890,-724.1,0.00049315,2]
[314490319,1708375997900,-501.9,0.00049315,30]
[314490320,1708375997910,-500.0,0.00049315,30]
[314490321,1708375997919,-730.67,0.00049315,30]
[314490322,1708375997929,-500.0,0.00049315,30]
[314490323,1708375997938,-8215.23,0.00049315,30]
[314490324,1708375997948,-2841.63,0.00049315,30]
[314490325,1708375997957,-500.0,0.00049315,30]
[314490326,1708375997967,-506.74,0.00049315,30]
[314490327,1708375997976,-2484.41,0.00049315,30]
[314490328,1708375997987,-3313.69,0.00049315,30]
[314490329,1708375997996,-2832.73,0.00049315,30]
[314490330,1708375998006,-500.0,0.00049315,30]
[314490331,1708375998017,-500.0,0.00049315,30]
[314490332,1708375998026,-3103.46,0.00049315,30]
[314490333,1708375998036,-2792.02,0.00049315,30]
[314490334,1708375998045,-642.81,0.00049315,30]
[314490335,1708375998056,-3395.26,0.00049315,30]
[314490336,1708375998066,-1617.41,0.00049315,30]
[314490337,1708375998076,-974.83,0.00049315,30]
[314490338,1708375998085,-571.28,0.00049315,30]
[314490339,1708375998097,-4198.24,0.00049315,30]
[314490340,1708375998107,-500.0,0.00049315,30]
[314490341,1708375998120,-1617.03,0.00049315,30]
[314490342,1708375998129,-500.0,0.00049315,30]
[314490343,1708375998139,-1442.14,0.00049315,30]
[314490344,1708375998150,-500.0,0.00049315,30]